fUSD/lending_fUSD_20241207
["ID","MTS","AMOUNT","RATE_DAILY","PERIOD"]
[344592880,1733587838793,-500.0,0.00015132,2]
[344592881,1733587838802,-500.0,0.00015132,2]
[344592882,1733587838810,-500.0,0.00015132,2]
[344592883,1733587838819,-500.0,0.00015132,2]
[344592884,1733587838834,-500.0,0.00015132,2]
[344592885,1733587838843,-359.0162539,0.00015132,2]
[344592886,1733587838853,-500.0,0.00015132,2]
[344592887,1733587838862,-502.93773467,0.00015132,2]
[344592888,1733587838871,-500.0,0.00015132,2]
[344592889,1733587838882,-500.0,0.00015132,2]
[344592890,1733587838892,-374.80479746,0.00015132,2]
[344592891,1733587838901,-500.0,0.00015132,2]
[344592892,1733587838910,-554.08,0.00015132,2]
[344592893,1733587838920,-554.08,0.00015132,2]
[344592894,1733587838929,-554.08,0.00015132,2]
[344592895,1733587838938,-554.08,0.00015132,2]
[344592896,1733587838947,-554.08,0.00015132,2]
[344592897,1733587838956,-554.08,0.00015132,2]
[344592898,1733587838965,-554.08,0.00015132,2]
[344592899,1733587838974,-554.08,0.00015132,2]
[344592900,1733587838984,-500.0,0.00015132,2]
[344592901,1733587838993,-554.08,0.00015132,2]
[344592902,1733587839002,-554.08,0.00015132,2]
[344592903,1733587839011,-554.08,0.00015132,2]
[344592904,1733587839020,-554.08,0.00015132,2]
[344592905,1733587839029,-500.0,0.00015132,2]
[344592906,1733587839038,-554.08,0.00015132,2]
[344592907,1733587839047,-500.0,0.00015132,2]
[344592908,1733587839056,-500.0,0.00015132,2]
[344592909,1733587839066,-554.08,0.00015132,2]
[344592910,1733587839076,-340.29579209,0.00015132,2]
[344592911,1733587839085,-500.0,0.00015132,2]
[344592912,1733587839095,-554.08,0.00015132,2]
[344592913,1733587839104,-500.0,0.00015132,2]
[344592914,1733587839114,-554.08,0.00015132,2]
[344592915,1733587839123,-554.08,0.00015132,2]
[344592916,1733587839135,-554.08,0.00015132,2]
[344592917,1733587839143,-500.0,0.00015132,2]
[344592918,1733587839153,-554.08,0.00015132,2]
[344592919,1733587839162,-500.0,0.00015132,2]
[344592920,1733587839172,-500.0,0.00015132,2]
[344592921,1733587839181,-554.08,0.00015132,2]
[344592922,1733587839191,-500.0,0.00015132,2]
[344592923,1733587839200,-3107.53,0.00015132,2]
[344592924,1733587839209,-554.08,0.00015132,2]
[344592925,1733587839219,-500.0,0.00015132,2]
[344592927,1733587839229,-3107.53,0.00015132,2]
[344592928,1733587839238,-554.08,0.00015132,2]
[344592929,1733587839247,-3107.53,0.00015132,2]
[344592930,1733587839257,-554.29,0.00015132,2]
[344592931,1733587839266,-3107.53,0.00015132,2]
[344592932,1733587839275,-3107.53,0.00015132,2]
[344592933,1733587839284,-3107.53,0.00015132,2]
[344592935,1733587839293,-3107.53,0.00015132,2]
[344592936,1733587839303,-3107.53,0.00015132,2]
[344592937,1733587839312,-3107.53,0.00015132,2]
[344592938,1733587839321,-3107.53,0.00015132,2]
[344592939,1733587839330,-3107.53,0.00015132,2]
[344592940,1733587839339,-3107.53,0.00015132,2]
[344592941,1733587839349,-3107.53,0.00015132,2]
[344592942,1733587839357,-3107.53,0.00015132,2]
[344592943,1733587839368,-3107.53,0.00015132,2]
[344592944,1733587839382,-3107.53,0.00015132,2]
[344592945,1733587839395,-3107.53,0.00015132,2]
[344592946,1733587839404,-3107.53,0.00015132,2]
[344592947,1733587839413,-3107.53,0.00015132,2]
[344592948,1733587839423,-3107.53,0.00015132,2]
[344592949,1733587839432,-3107.53,0.00015132,2]
[344592950,1733587839441,-3107.53,0.00015132,2]
[344592951,1733587839449,-3107.58970101,0.00015132,2]
[344592952,1733587839460,-500.0,0.00015132,2]
[344592953,1733587839469,-234.1,0.00015132,2]
[344592954,1733587839478,-500.0,0.00015132,2]
[344592955,1733587839487,-500.0,0.00015132,2]
[344592956,1733587839496,-410.01200862,0.00015132,2]
[344592957,1733587839505,-500.0,0.00015132,2]
[344592958,1733587839515,-500.0,0.00015132,2]
[344592959,1733587839524,-500.0,0.00015132,2]
[344592960,1733587839533,-500.0,0.00015132,2]
[344592961,1733587839545,-500.0,0.00015132,2]
[344592962,1733587839558,-500.0,0.00015132,2]
[344592963,1733587839571,-302.13626334,0.00015132,2]
[344592964,1733587839582,-500.0,0.00015132,2]
[344592965,1733587839594,-500.0,0.00015132,2]
[344592966,1733587839604,-500.0,0.00015132,2]
[344592967,1733587839614,-500.0,0.00015132,2]
[344592968,1733587839625,-500.0,0.00015132,2]
[344592969,1733587839637,-500.0,0.00015132,2]
[344592970,1733587839648,-500.0,0.00015132,2]
[344592971,1733587839660,-500.0,0.00015132,2]
[344592972,1733587839670,-500.0,0.00015132,2]
[344592973,1733587839682,-500.0,0.00015132,2]
[344592974,1733587839693,-500.0,0.00015132,2]
[344592975,1733587839705,-500.0,0.00015132,2]
[344592976,1733587839716,-177.60597906,0.00015132,2]
[344592977,1733587839727,-500.0,0.00015132,2]
[344592978,1733587839739,-500.0,0.00015132,2]
[344592979,1733587839749,-222.57,0.00015132,2]
[344592980,1733587839760,-163.44203699,0.00015132,2]
[344592981,1733587839770,-19226.89500745,0.00015133,2]
[344592982,1733587839780,-20000.0,0.00015133,2]
[344592983,1733587839793,-26729.58346313,0.00015133,2]
[344592984,1733587839804,-800.0,0.00015133,2]
[344592985,1733587839815,-800.0,0.00015133,2]
[344592986,1733587839827,-800.0,0.00015133,2]
[344592987,1733587839838,-800.0,0.00015133,2]
[344592988,1733587839849,-800.0,0.00015133,2]
[344592989,1733587839860,-800.0,0.00015133,2]
[344592990,1733587839872,-1665537.62779227,0.00015133,2]
[344592991,1733587839889,-463.4202856,0.00015133,2]
[344592992,1733587839903,-50931.742,0.00015133,2]
[344592993,1733587839916,-21598.82321379,0.00015133,2]
[344592994,1733587839930,-284.0,0.00015133,2]
[344592995,1733587840075,-16000.0,0.00015133,2]
[344592996,1733587840093,-919.87288998,0.00015133,2]
[344592997,1733587840105,-43066.99999836,0.00015133,2]
[344592998,1733587840130,-4678.31060055,0.00015133,2]
[344592999,1733587840144,-4987.444502,0.00015133,2]
[344593000,1733587840159,-1302.53483451,0.00015133,2]
[344593001,1733587840174,-1728.77262585,0.00015133,2]
[344593002,1733587840186,-1925.36,0.00015133,2]
[344593003,1733587840198,-166091.44441249,0.00015133,2]
[344593004,1733587840220,-61537.54498126,0.00015133,2]
[344593005,1733587840238,-7187.39652118,0.00015133,2]
[344593006,1733587840259,-5168.879272,0.00015133,2]
[344593007,1733587840276,-925.54943148,0.00015133,2]
[344593008,1733587840296,-2245.54570582,0.00015133,2]
[344593013,1733587842855,-329.91996157,0.00015133,2]
[344593014,1733587843017,-6027.58266647,0.00015133,2]
[344593015,1733587843031,-3742.63671395,0.00015133,2]
[344593016,1733587843044,-5477.99312868,0.00015133,2]
[344593017,1733587843058,-2753.30799768,0.00015133,2]
[344593018,1733587843071,-5977.47555128,0.00015133,2]
[344593019,1733587843084,-4206.71812364,0.00015133,2]
[344593020,1733587843097,-19208.0,0.00015133,2]
[344593021,1733587843125,-404.63994607,0.00015133,2]
[344593022,1733587843234,-7036.67488288,0.00015133,2]
[344593023,1733587843248,-512.12413031,0.00015133,2]
[344593024,1733587843262,-23897.6775,0.00015133,2]
[344593041,1733587845401,-500.0,0.00015131,2]
[344593043,1733587845412,-500.0,0.00015131,2]
[344593045,1733587845423,-16427.4854,0.00015133,2]
[344593048,1733587845437,-7087.000001,0.00015133,2]
[344593052,1733587845508,-499.25,0.00015133,2]
[344593053,1733587845521,-451.56294,0.00015133,2]
[344593054,1733587845563,-345.55,0.00015133,2]
[344593055,1733587845576,-1654.07342479,0.00015133,2]
[344593056,1733587845672,-324.96,0.00015132,2]
[344593057,1733587845683,-1415.6991845,0.00015133,2]
[344593058,1733587845696,-301.04524444,0.00015133,2]
[344593059,1733587845727,-911.70533755,0.00015133,2]
[344593060,1733587845740,-50980.2361429,0.00015133,2]
[344593061,1733587845783,-8025.41410004,0.00015133,2]
[344593062,1733587845797,-5096.29838,0.00015133,2]
[344593118,1733589031687,-289.44952177,0.0001058,2]
[344593119,1733589031697,-212.81648457,0.0001058,2]
[344593120,1733589031708,-1279.999995,0.0001058,2]
[344593121,1733589031719,-5151.4380307,0.0001058,2]
[344593122,1733589031750,-498.3,0.0001058,2]
[344593123,1733589031761,-3974.4066,0.0001058,2]
[344593124,1733589031776,-1022.98524474,0.0001058,2]
[344593125,1733589031889,-4472.24625443,0.0001058,2]
[344593126,1733589031899,-979.2,0.0001068,2]
[344593127,1733589031909,-300.0,0.00010779,2]
[344593128,1733589031918,-25352.52178732,0.0001078,2]
[344593129,1733589031928,-59946.06077796,0.0001078,2]
[344593130,1733589031951,-541.345,0.0001078,2]
[344593131,1733589031962,-3237.79270211,0.0001078,2]
[344593132,1733589031973,-19811.92871298,0.0001078,2]
[344593133,1733589031982,-420.0,0.00011848,2]
[344593134,1733589031992,-152.11,0.00012235,2]
[344593135,1733589032001,-150.0,0.00013528,2]
[344593136,1733589032010,-164.26,0.00013671,2]
[344593137,1733589032019,-312.7,0.00013699,2]
[344593138,1733589032031,-11543.26,0.00013736,2]
[344593139,1733589032040,-278.24,0.00013783,2]
[344593140,1733589032049,-250.0,0.00013784,2]
[344593141,1733589032059,-2000.0,0.00013876,2]
[344593142,1733589032068,-549.76,0.00013902,2]
[344593143,1733589032078,-150.0,0.00013987,2]
[344593144,1733589032087,-200.5,0.00014021,2]
[344593145,1733589032096,-800.0,0.00014021,2]
[344593146,1733589032105,-3089.85358402,0.00014053,2]
[344593147,1733589032116,-3651.88641598,0.00014053,2]
[344593149,1733589032126,-250.0,0.00014154,2]
[344593152,1733589032135,-166.84,0.00014157,2]
[344593155,1733589032144,-1575.45807823,0.00014202,2]
[344593157,1733589032154,-768.05,0.00014241,2]
[344593159,1733589032164,-1575.45807814,0.00014294,2]
[344593161,1733589032174,-186.98,0.00014302,2]
[344593163,1733589032183,-325.933,0.0001437,2]
[344593165,1733589032192,-444.62,0.00014378,2]
[344593167,1733589032203,-1575.45807814,0.00014387,2]
[344593169,1733589032212,-200.0,0.00014451,2]
[344593171,1733589032221,-169.81,0.00014461,2]
[344593173,1733589032230,-1575.45807814,0.00014479,2]
[344593175,1733589032239,-1575.45807814,0.00014571,2]
[344593177,1733589032249,-1575.45807814,0.00014664,2]
[344593179,1733589032258,-1575.45807814,0.00014756,2]
[344593181,1733589032267,-1575.45807814,0.00014848,2]
[344593183,1733589032276,-265.42357684,0.00014874,2]
[344593185,1733589032285,-152.11,0.00014923,2]
[344593186,1733589032295,-3152.83263684,0.00014933,2]
[344593187,1733589032481,-1575.45807814,0.00014941,2]
[344593188,1733589032491,-401.06622325,0.00014955,2]
[344593189,1733589032501,-16980.16453253,0.00014955,2]
[344593190,1733589032510,-327.86907363,0.00014955,2]
[344593191,1733589032519,-534.75496434,0.00014955,2]
[344593192,1733589032528,-200.0,0.00014955,2]
[344593193,1733589032537,-534.75496434,0.00014956,2]
[344593194,1733589032546,-2172.89956839,0.00014956,2]
[344593195,1733589032556,-200.0,0.00014956,2]
[344593196,1733589032565,-235.2867221,0.00014957,2]
[344593197,1733589032575,-245.90180522,0.00014957,2]
[344593198,1733589032584,-200.0,0.00014957,2]
[344593199,1733589032593,-200.0,0.00014957,2]
[344593200,1733589032602,-1629.6746763,0.00014957,2]
[344593201,1733589032611,-217.53530988,0.00014957,2]
[344593202,1733589032620,-515.63925304,0.00014958,2]
[344593203,1733589032629,-245.90180522,0.00014958,2]
[344593204,1733589032638,-317.54840079,0.00014958,2]
[344593205,1733589032647,-7163.50691216,0.00014958,2]
[344593206,1733589032656,-449.66461005,0.00014958,2]
[344593207,1733589032665,-327.86907363,0.00014958,2]
[344593208,1733589032674,-5372.63018412,0.00014958,2]
[344593209,1733589032682,-200.0,0.00014958,2]
[344593210,1733589032692,-317.54840079,0.00014958,2]
[344593211,1733589032702,-1629.6746763,0.00014959,2]
[344593212,1733589032711,-3406.08506091,0.00014959,2]
[344593213,1733589032723,-13574.07947162,0.00014959,2]
[344593214,1733589032732,-317.54840079,0.00014959,2]
[344593215,1733589032742,-916.69200542,0.00014959,2]
[344593216,1733589032751,-200.0,0.0001496,2]
[344593217,1733589032760,-687.51900406,0.0001496,2]
[344593218,1733589032769,-16980.16453253,0.0001496,2]
[344593219,1733589032778,-12735.1233994,0.0001496,2]
[344593220,1733589032787,-238.16130059,0.0001496,2]
[344593221,1733589032796,-5372.63018412,0.0001496,2]
[344593222,1733589032805,-200.0,0.00014961,2]
[344593223,1733589032814,-200.0,0.00014961,2]
[344593224,1733589032824,-9421.69170147,0.00014962,2]
[344593232,1733589037714,-13218.52767523,0.00014962,2]
[344593233,1733589037724,-200.0,0.00014962,2]
[344593234,1733589037733,-9551.34254955,0.00014962,2]
[344593235,1733589037743,-534.75496434,0.00014962,2]
[344593236,1733589037752,-200.0,0.00014962,2]
[344593237,1733589037761,-916.69200542,0.00014962,2]
[344593238,1733589037770,-200.0,0.00014962,2]
[344593239,1733589037780,-200.0,0.00014962,2]
[344593240,1733589037789,-515.63925304,0.00014962,2]
[344593241,1733589037799,-534.75496434,0.00014963,2]
[344593242,1733589037808,-401.06622325,0.00014963,2]
[344593243,1733589037817,-1222.25600722,0.00014963,2]
[344593244,1733589037830,-200.0,0.00014963,2]
[344593245,1733589037840,-327.86907363,0.00014963,2]
[344593246,1733589037849,-200.0,0.00014964,2]
[344593247,1733589037858,-5372.63018412,0.00014964,2]
[344593248,1733589037868,-200.0,0.00014964,2]
[344593249,1733589037877,-534.75496434,0.00014965,2]
[344593250,1733589037887,-245.90180522,0.00014965,2]
[344593251,1733589037896,-200.0,0.00014965,2]
[344593252,1733589037905,-200.0,0.00014965,2]
[344593253,1733589037914,-217.53530988,0.00014965,2]
[344593254,1733589037923,-15785.61802042,0.00014965,2]
[344593255,1733589037934,-2577.8400004,0.00014965,2]
[344593256,1733589037956,-4276.76135588,0.00014965,2]
[344593258,1733589037965,-16980.16453253,0.00014966,2]
[344593259,1733589037974,-5372.63018412,0.00014966,2]
[344593260,1733589037984,-2897.19942453,0.00014966,2]
[344593261,1733589037994,-386.72943979,0.00014966,2]
[344593262,1733589038003,-200.0,0.00014966,2]
[344593263,1733589038012,-423.39786772,0.00014967,2]
[344593264,1733589038021,-2958.47626949,0.00014967,2]
[344593265,1733589038030,-7163.50691216,0.00014967,2]
[344593266,1733589038039,-401.06622325,0.00014967,2]
[344593267,1733589038048,-9551.34254955,0.00014967,2]
[344593268,1733589038058,-2897.19942453,0.00014967,2]
[344593270,1733589038067,-200.0,0.00014968,2]
[344593272,1733589038076,-1222.25600722,0.00014968,2]
[344593274,1733589038085,-423.39786772,0.00014969,2]
[344593275,1733589038095,-200.0,0.00014969,2]
[344593276,1733589038104,-200.0,0.0001497,2]
[344593277,1733589038113,-200.0,0.0001497,2]
[344593278,1733589038122,-9551.34254955,0.0001497,2]
[344593280,1733589038131,-200.0,0.00014971,2]
[344593282,1733589038140,-200.0,0.00014971,2]
[344593284,1733589038150,-200.0,0.00014971,2]
[344593285,1733589038159,-200.0,0.00014971,2]
[344593286,1733589038169,-687.51900406,0.00014971,2]
[344593287,1733589038178,-2172.89956839,0.00014971,2]
[344593288,1733589038188,-200.0,0.00014971,2]
[344593289,1733589038198,-200.0,0.00014971,2]
[344593290,1733589038213,-12735.1233994,0.00014972,2]
[344593291,1733589038222,-7163.50691216,0.00014972,2]
[344593292,1733589038231,-238.16130059,0.00014973,2]
[344593293,1733589038241,-200.0,0.00014974,2]
[344593294,1733589038251,-449.66461005,0.00014974,2]
[344593295,1733589038260,-401.06622325,0.00014974,2]
[344593296,1733589038270,-916.69200542,0.00014974,2]
[344593297,1733589038280,-12735.1233994,0.00014974,2]
[344593298,1733589038289,-2958.47626949,0.00014974,2]
[344593299,1733589038299,-200.0,0.00014974,2]
[344593300,1733589038309,-313.71562946,0.00014974,2]
[344593301,1733589038319,-238.16130059,0.00014975,2]
[344593302,1733589038328,-16980.16453253,0.00014975,2]
[344593303,1733589038338,-5372.63018412,0.00014975,2]
[344593304,1733589038347,-245.90180522,0.00014976,2]
[344593305,1733589038356,-313.71562946,0.00014976,2]
[344593306,1733589038366,-401.06622325,0.00014976,2]
[344593307,1733589038375,-916.69200542,0.00014976,2]
[344593308,1733589038391,-200.0,0.00014976,2]
[344593309,1733589038400,-200.0,0.00014976,2]
[344593310,1733589038410,-386.72943979,0.00014976,2]
[344593311,1733589038420,-200.0,0.00014976,2]
[344593312,1733589038429,-200.0,0.00014977,2]
[344593313,1733589038438,-200.0,0.00014977,2]
[344593314,1733589038448,-290.04707984,0.00014977,2]
[344593315,1733589038462,-200.0,0.00014978,2]
[344593316,1733589038471,-200.0,0.00014978,2]
[344593317,1733589038481,-200.0,0.00014978,2]
[344593318,1733589038490,-1629.6746763,0.00014979,2]
[344593319,1733589038501,-200.0,0.00014979,2]
[344593320,1733589038510,-313.71562946,0.00014979,2]
[344593321,1733589038520,-449.66461005,0.00014979,2]
[344593322,1733589038529,-534.75496434,0.0001498,2]
[344593323,1733589038538,-423.39786772,0.0001498,2]
[344593324,1733589038548,-449.66461005,0.0001498,2]
[344593325,1733589038558,-386.72943979,0.0001498,2]
[344593326,1733589038567,-200.0,0.0001498,2]
[344593327,1733589038576,-238.16130059,0.00014981,2]
[344593328,1733589038585,-2172.89956839,0.00014981,2]
[344593329,1733589038594,-22640.2193767,0.00014981,2]
[344593330,1733589038603,-200.0,0.00014982,2]
[344593331,1733589038613,-290.04707984,0.00014982,2]
[344593332,1733589038622,-515.63925304,0.00014982,2]
[344593333,1733589038631,-235.2867221,0.00014982,2]
[344593334,1733589038641,-200.0,0.00014982,2]
[344593335,1733589038650,-200.0,0.00014982,2]
[344593336,1733589038660,-235.2867221,0.00014982,2]
[344593337,1733589038670,-200.0,0.00014983,2]
[344593338,1733589038680,-7163.50691216,0.00014983,2]
[344593339,1733589038691,-1629.6746763,0.00014983,2]
[344593340,1733589038704,-200.0,0.00014983,2]
[344593341,1733589038713,-200.0,0.00014983,2]
[344593342,1733589038724,-200.0,0.00014983,2]
[344593343,1733589038733,-386.72943979,0.00014983,2]
[344593344,1733589038742,-317.54840079,0.00014983,2]
[344593345,1733589038751,-200.0,0.00014983,2]
[344593346,1733589038760,-1629.6746763,0.00014983,2]
[344593347,1733589038770,-9551.34254955,0.00014984,2]
[344593348,1733589038779,-449.66461005,0.00014984,2]
[344593349,1733589038788,-200.0,0.00014984,2]
[344593350,1733589038797,-2958.47626949,0.00014984,2]
[344593351,1733589038806,-217.53530988,0.00014984,2]
[344593352,1733589038815,-200.0,0.00014984,2]
[344593353,1733589038824,-200.0,0.00014984,2]
[344593354,1733589038836,-687.51900406,0.00014985,2]
[344593355,1733589038850,-200.0,0.00014985,2]
[344593356,1733589038862,-200.0,0.00014985,2]
[344593357,1733589038872,-290.04707984,0.00014985,2]
[344593358,1733589038882,-12735.1233994,0.00014985,2]
[344593359,1733589038891,-200.0,0.00014985,2]
[344593360,1733589038900,-200.0,0.00014985,2]
[344593361,1733589038911,-515.63925304,0.00014986,2]
[344593362,1733589038921,-22640.2193767,0.00014986,2]
[344593363,1733589038930,-235.2867221,0.00014986,2]
[344593364,1733589038940,-217.53530988,0.00014986,2]
[344593365,1733589038949,-200.0,0.00014986,2]
[344593366,1733589038960,-1222.25600722,0.00014986,2]
[344593367,1733589038969,-200.0,0.00014986,2]
[344593368,1733589038978,-1222.25600722,0.00014986,2]
[344593369,1733589038987,-313.71562946,0.00014986,2]
[344593370,1733589038995,-235.2867221,0.00014986,2]
[344593371,1733589039004,-9551.34254955,0.00014987,2]
[344593372,1733589039013,-449.66461005,0.00014987,2]
[344593373,1733589039023,-313.71562946,0.00014987,2]
[344593374,1733589039033,-9551.34254955,0.00014987,2]
[344593375,1733589039042,-401.06622325,0.00014987,2]
[344593376,1733589039051,-916.69200542,0.00014987,2]
[344593377,1733589039061,-290.04707984,0.00014987,2]
[344593378,1733589039070,-245.90180522,0.00014987,2]
[344593379,1733589039080,-12735.1233994,0.00014988,2]
[344593380,1733589039089,-1629.6746763,0.00014988,2]
[344593381,1733589039098,-386.72943979,0.00014988,2]
[344593382,1733589039108,-313.71562946,0.00014989,2]
[344593383,1733589039118,-200.0,0.00014989,2]
[344593384,1733589039128,-2897.19942453,0.00014989,2]
[344593385,1733589039138,-22640.2193767,0.00014989,2]
[344593386,1733589039148,-327.86907363,0.00014989,2]
[344593387,1733589039157,-423.39786772,0.00014989,2]
[344593388,1733589039166,-2897.19942453,0.0001499,2]
[344593389,1733589039176,-245.90180522,0.0001499,2]
[344593390,1733589039185,-687.51900406,0.0001499,2]
[344593391,1733589039195,-2958.47626949,0.0001499,2]
[344593392,1733589039206,-200.0,0.0001499,2]
[344593393,1733589039215,-687.51900406,0.0001499,2]
[344593394,1733589039225,-200.0,0.0001499,2]
[344593395,1733589039234,-19594.20690399,0.0001499,2]
[344593396,1733589039243,-1222.25600722,0.0001499,2]
[344593397,1733589039253,-200.0,0.00014991,2]
[344593398,1733589039262,-317.54840079,0.00014991,2]
[344593399,1733589039273,-2958.47626949,0.00014991,2]
[344593400,1733589039282,-515.63925304,0.00014991,2]
[344593401,1733589039292,-916.69200542,0.00014991,2]
[344593402,1733589039302,-200.0,0.00014992,2]
[344593403,1733589039312,-327.86907363,0.00014992,2]
[344593404,1733589039321,-200.0,0.00014992,2]
[344593405,1733589039331,-12735.1233994,0.00014993,2]
[344593406,1733589039340,-1222.25600722,0.00014993,2]
[344593407,1733589039349,-423.39786772,0.00014993,2]
[344593408,1733589039358,-238.16130059,0.00014993,2]
[344593409,1733589039367,-515.63925304,0.00014994,2]
[344593410,1733589039379,-2172.89956839,0.00014994,2]
[344593411,1733589039388,-200.0,0.00014994,2]
[344593412,1733589039397,-290.04707984,0.00014994,2]
[344593413,1733589039407,-200.0,0.00014994,2]
[344593414,1733589039416,-238.16130059,0.00014995,2]
[344593415,1733589039426,-2897.19942453,0.00014995,2]
[344593416,1733589039435,-423.39786772,0.00014995,2]
[344593417,1733589039445,-386.72943979,0.00014995,2]
[344593418,1733589039457,-5372.63018412,0.00014995,2]
[344593419,1733589039467,-200.0,0.00014996,2]
[344593420,1733589039477,-200.0,0.00014996,2]
[344593421,1733589039488,-200.0,0.00014996,2]
[344593422,1733589039498,-200.0,0.00014996,2]
[344593423,1733589039507,-687.51900406,0.00014996,2]
[344593424,1733589039517,-200.0,0.00014996,2]
[344593426,1733589039526,-235.2867221,0.00014997,2]
[344593427,1733589039535,-200.0,0.00014997,2]
[344593428,1733589039545,-327.86907363,0.00014997,2]
[344593429,1733589039554,-217.53530988,0.00014997,2]
[344593430,1733589039564,-2172.89956839,0.00014998,2]
[344593431,1733589039574,-317.54840079,0.00014998,2]
[344593432,1733589039584,-7163.50691216,0.00014998,2]
[344593433,1733589039593,-217.53530988,0.00014999,2]
[344593434,1733589039603,-200.0,0.00014999,2]
[344593435,1733589039612,-7163.50691216,0.00014999,2]
[344593438,1733589039622,-2172.89956839,0.00014999,2]
[344593439,1733589039631,-16980.16453253,0.00014999,2]
[344593441,1733589039640,-2897.19942453,0.00014999,2]
[344593442,1733589039650,-200.0,0.00014999,2]
[344593443,1733589039659,-200.0,0.00014999,2]
[344593444,1733589039669,-290.04707984,0.00014999,2]
[344593445,1733589039679,-22640.2193767,0.00015,2]
[344593446,1733589039689,-200.0,0.00015,2]
[344593447,1733589039699,-2958.47626949,0.00015,2]
[344593448,1733589039711,-3868.0,0.00015,2]
[344593449,1733589039721,-200.0,0.00015,2]
[344593450,1733589039731,-500.0,0.00015011,2]
[344593451,1733589039741,-184.81066322,0.00015032,2]
[344593452,1733589039750,-810.58423411,0.00015033,2]
[344593453,1733589039760,-2543.7327,0.00015033,2]
[344593454,1733589039769,-2500.0,0.00015033,2]
[344593455,1733589039779,-810.58423411,0.00015033,2]
[344593456,1733589039788,-810.58423411,0.00015033,2]
[344593457,1733589039797,-184.81066321,0.00015033,2]
[344593458,1733589039807,-1575.45807814,0.00015033,2]
[344593459,1733589039816,-1938.23420954,0.00015033,2]
[344593460,1733589039826,-857.388,0.0001507,2]
[344593461,1733589039837,-8500.0,0.000151,2]
[344593462,1733589039847,-500.0,0.00015122,2]
[344593463,1733589039856,-1787.852,0.00015125,2]
[344593464,1733589039865,-222.857,0.00015125,2]
[344593465,1733589039875,-402.369,0.00015125,2]
[344593466,1733589039885,-150.0,0.00015125,2]
[344593467,1733589039894,-566.0,0.00015125,2]
[344593468,1733589039903,-1262.0,0.00015125,2]
[344593469,1733589039912,-631.0,0.00015125,2]
[344593470,1733589039921,-2003.0,0.00015125,2]
[344593471,1733589039930,-500.0,0.0001513,2]
[344593472,1733589039939,-500.0,0.00015131,2]
[344593473,1733589039948,-500.0,0.00015131,2]
[344593474,1733589039960,-500.0,0.00015131,2]
[344593475,1733589039969,-500.0,0.00015131,2]
[344593476,1733589039978,-500.0,0.00015131,2]
[344593477,1733589039988,-647.37826132,0.00015131,2]
[344593478,1733589039998,-500.0,0.00015131,2]
[344593479,1733589040008,-500.0,0.00015131,2]
[344593480,1733589040023,-500.0,0.00015131,2]
[344593481,1733589040033,-500.0,0.00015131,2]
[344593482,1733589040042,-500.0,0.00015131,2]
[344593483,1733589040051,-500.0,0.00015131,2]
[344593484,1733589040061,-204.43440151,0.00015131,2]
[344593485,1733589040070,-500.0,0.00015131,2]
[344593486,1733589040079,-500.0,0.00015131,2]
[344593487,1733589040088,-500.0,0.00015131,2]
[344593489,1733589040098,-500.0,0.00015131,2]
[344593491,1733589040108,-500.0,0.00015131,2]
[344593492,1733589040117,-500.0,0.00015131,2]
[344593494,1733589040126,-500.0,0.00015131,2]
[344593496,1733589040136,-500.0,0.00015131,2]
[344593498,1733589040146,-500.0,0.00015131,2]
[344593500,1733589040155,-7500.0,0.00015131,2]
[344593502,1733589040165,-500.0,0.00015131,2]
[344593504,1733589040176,-500.0,0.00015131,2]
[344593507,1733589040185,-500.0,0.00015131,2]
[344593509,1733589040196,-500.0,0.00015131,2]
[344593510,1733589040206,-416.39437599,0.00015132,2]
[344593513,1733589040216,-1006.73624498,0.00015132,5]
[344593515,1733589040225,-289.50631513,0.00015132,2]